bitfinex/quotes_BTCUSD_20230108
["timestamp","ask_amount","ask_price","bid_price","bid_amount"]
[1673201040780,0.50305555,16938.0,16937.0,2.89117325]
[1673201041276,0.23799763,16938.0,16937.0,2.89117325]
[1673201042534,0.50305555,16938.0,16937.0,2.89117325]
[1673201042790,0.23799763,16938.0,16937.0,2.89117325]
[1673201043316,0.06129235,16938.0,16937.0,2.89117325]
[1673201043540,0.06129235,16938.0,16937.0,3.06397325]
[1673201043764,0.06129235,16938.0,16937.0,3.43233225]
[1673201046271,0.23799763,16938.0,16937.0,3.43233225]
[1673201046527,0.23799763,16938.0,16937.0,3.06397325]
[1673201050676,0.23799763,16938.0,16937.0,3.05397325]
[1673201051652,0.23799763,16938.0,16937.0,1.75642881]
[1673201051911,0.8562856,16938.0,16937.0,1.75642881]
[1673201052172,0.50299256,16938.0,16937.0,1.75642881]
[1673201052424,0.8562856,16938.0,16937.0,1.75642881]
[1673201052933,0.85629515,16938.0,16937.0,1.75642881]
[1673201053187,1.22465372,16938.0,16937.0,1.75642881]
[1673201053444,1.04800231,16938.0,16937.0,1.75642881]
[1673201053967,0.67964331,16938.0,16937.0,1.75642881]
[1673201054448,0.67964331,16938.0,16937.0,2.28225025]
[1673201054703,0.67964331,16938.0,16937.0,1.75642881]
[1673201056143,1.04800231,16938.0,16937.0,1.75642881]
[1673201056391,0.67964331,16938.0,16937.0,1.75642881]
[1673201057131,0.85630835,16938.0,16937.0,1.75642881]
[1673201057387,0.67964331,16938.0,16937.0,1.75642881]
[1673201059196,0.67964331,16938.0,16937.0,2.28225025]
[1673201061208,0.67964331,16938.0,16937.0,1.75642881]
[1673201061482,1.04800231,16938.0,16937.0,1.75642881]
[1673201061733,0.67964331,16938.0,16937.0,1.75642881]
[1673201062242,0.85631311,16938.0,16937.0,1.75642881]
[1673201064037,1.22467211,16938.0,16937.0,1.75642881]
[1673201064549,0.85631311,16938.0,16937.0,1.75642881]
[1673201064808,1.42217371,16938.0,16937.0,1.75642881]
[1673201065558,1.03301839,16938.0,16937.0,1.75642881]
[1673201066261,1.29798994,16938.0,16937.0,1.75642881]
[1673201069516,1.68467054,16938.0,16937.0,1.75642881]
[1673201070513,1.94959416,16938.0,16937.0,1.75642881]
[1673201070756,1.68467054,16938.0,16937.0,1.75642881]
[1673201071995,2.43968561,16938.0,16937.0,1.75642881]
[1673201072244,2.07132661,16938.0,16937.0,1.75642881]
[1673201072501,2.43968561,16938.0,16937.0,1.75642881]
[1673201073503,2.43950273,16938.0,16937.0,1.75642881]
[1673201074530,2.07114373,16938.0,16937.0,1.75642881]
[1673201075778,2.45757366,16938.0,16937.0,1.75642881]
[1673201076021,2.82593266,16938.0,16937.0,1.75642881]
[1673201077056,1.71759661,16938.0,16937.0,1.75642881]
[1673201077584,1.71759661,16938.0,16937.0,2.28225025]
[1673201078086,1.71759661,16938.0,16937.0,1.75642881]
[1673201078335,1.71759661,16938.0,16937.0,2.28225025]
[1673201078575,1.71759661,16938.0,16937.0,1.75642881]
[1673201079314,1.71759661,16938.0,16937.0,2.05162881]
[1673201079531,1.65630426,16938.0,16937.0,3.16787325]
[1673201080553,1.39139879,16938.0,16937.0,3.53623225]
[1673201081050,1.39139879,16938.0,16937.0,2.05162881]
[1673201081303,2.59080679,16938.0,16937.0,1.180846]
[1673201081592,2.78230761,16938.0,16937.0,1.180846]
[1673201081817,2.41394861,16938.0,16937.0,1.180846]
[1673201082102,2.85571181,16938.0,16937.0,1.180846]
[1673201082887,2.64971682,16938.0,16937.0,1.180846]
[1673201083551,3.06436966,16938.0,16937.0,1.180846]
[1673201084113,3.43272866,16938.0,16937.0,1.180846]
[1673201086685,3.07943562,16938.0,16937.0,0.590423]
[1673201088701,3.02052559,16938.0,16937.0,0.590423]
[1673201089717,3.07941764,16938.0,16937.0,0.590423]
[1673201089962,2.71105864,16938.0,16937.0,0.590423]
[1673201090220,3.06431492,16938.0,16937.0,0.590423]
[1673201091498,3.06431492,16938.0,16937.0,1.27748435]
[1673201093603,3.00542287,16938.0,16937.0,1.27748435]
[1673201093852,2.65216659,16938.0,16937.0,1.27748435]
[1673201094610,3.06436284,16938.0,16937.0,1.27748435]
[1673201096044,3.06436284,16938.0,16937.0,1.86790735]
[1673201096300,2.47293494,16938.0,16937.0,1.86790735]
[1673201096554,2.47293494,16938.0,16937.0,1.180846]
[1673201096818,2.71264404,16938.0,16937.0,0.590423]
[1673201098353,3.06595025,16938.0,16937.0,0.590423]
[1673201100340,2.71264404,16938.0,16937.0,0.590423]
[1673201100589,3.0659579,16938.0,16937.0,0.590423]
[1673201101359,3.0603559,16938.0,16937.0,0.590423]
[1673201101616,3.0603559,16938.0,16937.0,1.190423]
[1673201102603,3.0603559,16938.0,16937.0,1.80048761]
[1673201104827,3.0603559,16938.0,16937.0,1.20048761]
[1673201109666,1.4468159,16938.0,16937.0,1.20048761]
[1673201110174,1.4468159,16938.0,16937.0,1.56884661]
[1673201110516,1.4468159,16938.0,16937.0,1.20048761]
[1673201114042,0.65173884,16938.0,16937.0,0.590423]
[1673201114293,1.02009784,16938.0,16937.0,0.590423]
[1673201114515,1.09342349,16938.0,16937.0,0.590423]
[1673201116067,1.46178249,16938.0,16937.0,0.590423]
[1673201117516,1.09340431,16938.0,16937.0,0.590423]
[1673201117784,0.65173884,16938.0,16937.0,0.590423]
[1673201118545,1.46176208,16938.0,16937.0,0.590423]
[1673201118768,1.02009784,16938.0,16937.0,0.590423]
[1673201119062,0.65173884,16938.0,16937.0,0.590423]
[1673201119285,1.0933868,16938.0,16937.0,0.590423]
[1673201119536,1.02009784,16938.0,16937.0,0.590423]
[1673201119774,0.65173884,16938.0,16937.0,0.590423]
[1673201120276,1.09344153,16938.0,16937.0,0.590423]
[1673201122398,1.09344153,16938.0,16937.0,0.59034907]
[1673201123163,1.46180053,16938.0,16937.0,0.59034907]
[1673201124315,1.02009784,16938.0,16937.0,0.59034907]
[1673201124567,1.46178007,16938.0,16937.0,0.59034907]
[1673201124854,1.46177264,16938.0,16937.0,0.59034907]
[1673201125863,1.02009784,16938.0,16937.0,0.59034907]
[1673201126142,0.65173884,16938.0,16937.0,0.59034907]
[1673201126375,1.02009784,16938.0,16937.0,0.59034907]
[1673201128233,1.0200315,16938.0,16937.0,0.59034907]
[1673201128742,0.6516725,16938.0,16937.0,0.59034907]
[1673201129000,1.0200315,16938.0,16937.0,0.59034907]
[1673201131201,0.6516725,16938.0,16937.0,0.59034907]
[1673201132044,1.0200315,16938.0,16937.0,0.59034907]
[1673201132508,1.55014734,16938.0,16937.0,0.59034907]
[1673201132754,1.51626003,16938.0,16937.0,0.59034907]
[1673201137554,1.51626003,16938.0,16936.0,2.40220313]
[1673201137807,0.8577464,16937.0,16936.0,1.87638169]
[1673201138119,1.2261054,16937.0,16936.0,1.87638169]
[1673201138369,0.8577464,16937.0,16936.0,1.87638169]
[1673201138874,0.8577464,16937.0,16936.0,2.40220313]
[1673201139038,0.8577464,16937.0,16936.0,1.87638169]
[1673201139297,0.8727464,16937.0,16936.0,1.91338169]
[1673201140048,0.8727464,16937.0,16936.0,1.91350233]
[1673201140564,0.8727464,16937.0,16936.0,1.91338169]
[1673201141813,1.22594328,16937.0,16936.0,1.91338169]
[1673201143580,1.22594328,16937.0,16936.0,1.73918169]
[1673201146822,0.8727464,16937.0,16936.0,1.73918169]
[1673201147063,0.8727464,16937.0,16936.0,2.26500313]
[1673201147310,1.07473109,16937.0,16936.0,2.63336213]
[1673201147578,0.63322293,16937.0,16936.0,2.63336213]
[1673201148068,0.80986456,16937.0,16936.0,2.63336213]
[1673201148324,0.63322293,16937.0,16936.0,2.26500313]
[1673201148580,0.80986875,16937.0,16936.0,2.26491356]
[1673201148825,0.45659729,16937.0,16936.0,2.26491356]
[1673201149075,0.45659729,16937.0,16936.0,2.85537156]
[1673201149335,0.45659729,16937.0,16936.0,3.22373056]
[1673201150341,0.45659729,16937.0,16936.0,2.85537156]
[1673201151592,0.45659729,16937.0,16936.0,3.22373056]
[1673201152090,0.45659729,16937.0,16936.0,2.85537156]
[1673201160821,0.45659729,16937.0,16936.0,3.22373056]
[1673201163585,0.19164582,16937.0,16936.0,3.39773056]
[1673201165847,0.19164582,16937.0,16936.0,3.02937156]
[1673201176161,0.015,16937.0,16936.0,3.39773056]
[1673201176410,0.19164582,16937.0,16936.0,3.02937156]
[1673201179348,0.19164582,16937.0,16936.0,3.32459156]
[1673201179603,0.015,16937.0,16936.0,3.69477931]
[1673201179876,0.015,16937.0,16936.0,5.13690199]
[1673201180722,0.015,16937.0,16936.0,5.14540199]
[1673201183290,0.015,16937.0,16936.0,4.84540199]
[1673201183821,0.015,16937.0,16936.0,4.66869641]
[1673201186312,0.015,16937.0,16936.0,4.66868641]
[1673201186562,0.015,16937.0,16936.0,4.66880705]
[1673201189282,0.015,16937.0,16936.0,4.66879705]
[1673201190127,0.015,16937.0,16936.0,4.84550263]
[1673201190616,0.015,16937.0,16936.0,5.14550263]
[1673201191062,0.01493171,16937.0,16936.0,5.14550263]
[1673201194008,0.01493171,16937.0,16936.0,4.94927017]
[1673201194269,0.01493171,16937.0,16936.0,4.94926017]
[1673201195071,0.01493171,16937.0,16936.0,5.54317764]
[1673201195321,0.01493171,16937.0,16936.0,5.01449478]
[1673201196368,0.01493171,16937.0,16936.0,4.74926017]
[1673201197355,0.01493171,16937.0,16936.0,5.01449478]
[1673201197849,0.01493171,16937.0,16936.0,4.31449478]
[1673201198093,0.01493171,16937.0,16936.0,4.64346028]
[1673201198343,0.01493171,16937.0,16936.0,4.31449478]
[1673201199134,0.01493171,16937.0,16936.0,5.01449478]
[1673201200408,0.01493171,16937.0,16936.0,4.74926017]
[1673201200683,0.01493171,16937.0,16936.0,5.01449478]
[1673201200927,0.01493171,16937.0,16936.0,4.74926017]
[1673201201168,0.01493171,16937.0,16936.0,5.01449478]
[1673201201418,0.01493171,16937.0,16936.0,4.74926017]
[1673201201672,0.01493171,16937.0,16936.0,4.71930478]
[1673201202164,0.01493171,16937.0,16936.0,4.74926017]
[1673201202912,0.01493171,16937.0,16936.0,5.01449478]
[1673201203450,0.01493171,16937.0,16936.0,4.74655246]
[1673201203769,0.11493171,16937.0,16936.0,4.74655246]
[1673201204033,0.11493171,16937.0,16936.0,5.10022281]
[1673201204282,0.11493171,16937.0,16936.0,5.71686644]
[1673201204530,0.11493171,16937.0,16936.0,5.36319609]
[1673201204794,0.11493171,16937.0,16936.0,5.09661723]
[1673201205035,0.11493171,16937.0,16936.0,4.99661723]
[1673201205286,0.11493171,16937.0,16936.0,5.17444764]
[1673201205542,0.11493171,16937.0,16936.0,4.82077729]
[1673201206125,0.11493171,16937.0,16936.0,5.09836869]
[1673201206369,0.05850433,16937.0,16936.0,5.09836869]
[1673201206618,0.02500474,16938.0,16937.0,0.6]
[1673201206852,0.02500474,16938.0,16937.0,5.26346888]
[1673201207130,0.02500474,16938.0,16937.0,5.56346888]
[1673201208092,0.02800474,16938.0,16937.0,5.56946888]
[1673201208365,0.02800474,16938.0,16937.0,3.62119024]
[1673201208612,0.02800474,16938.0,16937.0,5.39245924]
[1673201209106,0.02800474,16938.0,16937.0,5.74639493]
[1673201209349,0.02800474,16938.0,16937.0,5.39245924]
[1673201210309,0.02800474,16938.0,16937.0,5.68761924]
[1673201211827,0.02800474,16938.0,16937.0,5.67784825]
[1673201212311,0.02800474,16938.0,16937.0,5.67284825]
[1673201213559,0.02800474,16938.0,16937.0,4.97284825]
[1673201214583,0.02800474,16938.0,16937.0,5.67284825]
[1673201214872,0.02800474,16938.0,16937.0,6.31040089]
[1673201215080,0.02800474,16938.0,16937.0,5.08305169]
[1673201216279,0.02800474,16938.0,16937.0,5.71000138]
[1673201216746,0.02800474,16938.0,16937.0,5.08305169]
[1673201216986,0.02800474,16938.0,16937.0,5.71948252]
[1673201217290,0.02800474,16938.0,16937.0,5.08305169]
[1673201221571,0.02800474,16938.0,16937.0,5.34850346]
[1673201221825,0.02428674,16938.0,16937.0,5.34850346]
[1673201222042,0.02428674,16938.0,16937.0,5.08305169]
[1673201223553,0.02428674,16938.0,16937.0,4.38305169]
[1673201224795,0.02428674,16938.0,16937.0,5.08305169]
[1673201227297,0.02428674,16938.0,16937.0,5.34850346]
[1673201227540,0.02428674,16938.0,16937.0,5.08305169]
[1673201227792,0.02428674,16938.0,16937.0,5.34850346]
[1673201228041,0.02428674,16938.0,16937.0,5.66992593]
[1673201228259,0.02428674,16938.0,16937.0,5.49572731]
[1673201228532,0.02428674,16938.0,16937.0,5.49575641]
[1673201228757,0.02428674,16938.0,16937.0,4.90885169]
[1673201232478,0.02428674,16938.0,16937.0,5.17430346]
[1673201234477,0.02428674,16938.0,16937.0,5.49663501]
[1673201235994,0.02428674,16938.0,16937.0,5.49664718]
[1673201236244,0.02428674,16938.0,16937.0,5.17430346]
[1673201236505,0.02428674,16938.0,16937.0,4.79667283]
[1673201237553,0.02428674,16938.0,16937.0,5.49667283]
[1673201239264,0.02428674,16938.0,16937.0,5.85060852]
[1673201239517,0.02428674,16938.0,16937.0,5.67368247]
[1673201239765,0.02428674,16938.0,16937.0,5.85077842]
[1673201240267,0.02428674,16938.0,16937.0,5.49684273]
[1673201240521,0.02428674,16938.0,16937.0,5.49686719]
[1673201241802,0.02428674,16938.0,16937.0,5.67369247]
[1673201245338,0.02428674,16938.0,16937.0,6.11675749]
[1673201245600,0.02428674,16938.0,16937.0,5.85130572]
[1673201246370,0.02428674,16938.0,16937.0,6.11706245]
[1673201246631,0.02428674,16938.0,16937.0,5.85130572]
[1673201247620,0.02428674,16938.0,16937.0,5.85129572]
[1673201248380,0.02428674,16938.0,16937.0,5.6740032]
[1673201249111,0.02428674,16938.0,16937.0,6.28530782]
[1673201249884,0.02428674,16938.0,16937.0,6.46249505]
[1673201250385,0.02428674,16938.0,16937.0,5.6740032]
[1673201250607,0.02428674,16938.0,16937.0,6.22072616]
[1673201250863,0.02428674,16938.0,16937.0,4.9740032]
[1673201251818,0.02428674,16938.0,16937.0,5.15129572]
[1673201252043,0.02428674,16938.0,16937.0,5.48293672]
[1673201252298,0.02428674,16938.0,16937.0,5.67401897]
[1673201253592,0.02428674,16938.0,16937.0,6.34473665]
[1673201253811,0.02428674,16938.0,16937.0,5.67401897]
[1673201254305,0.02428674,16938.0,16937.0,6.33224287]
[1673201255570,0.02428674,16938.0,16937.0,5.67401897]
[1673201255827,0.02428674,16938.0,16937.0,6.22720375]
[1673201256082,0.02428674,16938.0,16937.0,5.67401897]
[1673201257110,0.02428674,16938.0,16937.0,6.11708399]
[1673201257351,0.02428674,16938.0,16937.0,5.85129572]
[1673201259854,0.02428674,16938.0,16937.0,6.34475782]
[1673201260093,0.02428674,16938.0,16937.0,5.85130572]
[1673201260593,0.02428674,16938.0,16937.0,6.11712502]
[1673201261122,0.02428674,16938.0,16937.0,5.85130572]
[1673201262124,0.02421063,16938.0,16937.0,5.85130572]
[1673201262638,0.02421063,16938.0,16937.0,5.49737003]
[1673201263708,0.02421063,16938.0,16937.0,4.79737003]
[1673201263942,0.02421063,16938.0,16937.0,4.42901103]
[1673201264425,0.02421063,16938.0,16937.0,5.12901103]
[1673201264678,0.02421063,16938.0,16937.0,5.49737003]
[1673201265198,0.02421063,16938.0,16937.0,5.85171809]
[1673201265947,0.02421063,16938.0,16937.0,5.49737003]
[1673201268016,0.02421063,16938.0,16937.0,5.20220003]
[1673201268273,0.02421063,16938.0,16937.0,5.49736003]
[1673201270146,0.02421063,16938.0,16937.0,6.44950215]
[1673201270395,0.02421063,16938.0,16937.0,5.85163624]
[1673201272195,0.02421063,16938.0,16937.0,5.85164624]
[1673201272440,0.02421063,16938.0,16937.0,6.40722554]
[1673201272685,0.02421063,16938.0,16937.0,5.85164624]
[1673201272927,0.02421063,16938.0,16937.0,6.42223873]
[1673201273188,0.02421063,16938.0,16937.0,6.42213302]
[1673201274141,0.02421063,16938.0,16937.0,5.85154053]
[1673201274392,0.02421063,16938.0,16937.0,6.35145997]
[1673201274651,0.02421063,16938.0,16937.0,5.15154053]
[1673201274918,0.02421063,16938.0,16937.0,4.78318153]
[1673201275637,0.02421063,16938.0,16937.0,5.48318153]
[1673201275902,0.02421063,16938.0,16937.0,5.97827746]
[1673201276199,0.02421063,16938.0,16937.0,5.85154053]
[1673201277418,0.02421063,16938.0,16937.0,6.3441573]
[1673201277672,0.02421063,16938.0,16937.0,5.85154053]
[1673201278658,0.02421063,16938.0,16937.0,5.85153053]
[1673201279873,0.02421063,16938.0,16937.0,5.55637053]
[1673201280120,0.02421063,16938.0,16937.0,5.48317153]
[1673201281683,0.02421063,16938.0,16937.0,4.78317153]
[1673201282422,0.02421063,16938.0,16937.0,5.42956287]
[1673201282675,0.02421063,16938.0,16937.0,5.48317153]
[1673201282925,0.02421063,16938.0,16937.0,5.74888915]
[1673201283169,0.02421063,16938.0,16937.0,6.11724815]
[1673201283420,0.02421063,16938.0,16937.0,6.11724562]
[1673201283957,0.02421063,16938.0,16937.0,5.85153053]
[1673201284213,0.02421063,16938.0,16937.0,6.46965211]
[1673201284469,0.02421063,16938.0,16937.0,6.73537299]
[1673201284757,0.02421063,16938.0,16937.0,6.73549291]
[1673201285012,0.02421063,16938.0,16937.0,6.29242789]
[1673201285520,0.02421063,16938.0,16937.0,6.11737133]
[1673201285821,0.02421063,16938.0,16937.0,5.85165045]
[1673201287297,0.02421063,16938.0,16937.0,5.90708563]
[1673201287504,0.02421063,16938.0,16937.0,6.27544463]
[1673201287751,0.02421063,16938.0,16937.0,6.71850965]
[1673201287996,0.02421063,16938.0,16937.0,6.11724864]
[1673201288324,0.02421063,16938.0,16937.0,6.64370184]
[1673201288539,0.02421063,16938.0,16937.0,6.11726864]
[1673201288785,0.02421063,16938.0,16937.0,5.15155053]
[1673201289049,0.02421063,16938.0,16937.0,4.78319153]
[1673201289759,0.02421063,16938.0,16937.0,5.48319153]
[1673201289982,0.02421063,16938.0,16937.0,5.48318153]
[1673201290443,0.02421063,16938.0,16937.0,5.85154053]
[1673201294803,0.02413811,16938.0,16937.0,5.85154053]
[1673201295057,0.02413811,16938.0,16937.0,5.85153053]
[1673201296355,0.02413811,16938.0,16937.0,5.15153053]
[1673201296596,0.02413811,16938.0,16937.0,4.78317153]
[1673201296873,0.02413811,16938.0,16937.0,5.12889532]
[1673201297132,0.02413811,16938.0,16937.0,5.48327564]
[1673201297400,0.02413811,16938.0,16937.0,5.49726432]
[1673201297610,0.02413811,16938.0,16937.0,5.49725432]
[1673201302386,0.02413811,16938.0,16937.0,5.0541893]
[1673201303944,0.02413811,16938.0,16937.0,18.5922893]
[1673201304193,0.02413811,16938.0,16937.0,19.53705851]
[1673201304473,0.01258756,16938.0,16937.0,19.53105851]
[1673201304697,0.03571378,16938.0,16937.0,19.58805851]
[1673201304945,0.02371378,16938.0,16937.0,19.53105851]
[1673201305444,0.03571378,16938.0,16937.0,19.53105851]
[1673201305766,0.03571378,16938.0,16937.0,19.52255851]
[1673201305961,0.02371378,16938.0,16937.0,19.52255851]
[1673201306469,0.02371378,16938.0,16937.0,19.58423661]
[1673201306723,0.02371378,16938.0,16937.0,19.05277559]
[1673201307496,0.02371378,16938.0,16937.0,19.10977559]
[1673201307756,0.03571378,16938.0,16937.0,19.64066956]
[1673201308267,0.03571378,16938.0,16937.0,19.64078948]
[1673201310282,0.03571378,16938.0,16937.0,19.10989551]
[1673201310797,0.03571378,16938.0,16937.0,18.69658732]
[1673201311040,0.00015,16940.0,16937.0,19.81193416]
[1673201311308,0.5147,16942.0,16939.0,0.79337293]
[1673201311541,0.5147,16942.0,16941.0,0.29511]
[1673201311784,0.48320793,16943.0,16941.0,0.29511]
[1673201311785,0.64777538,16943.0,16942.0,0.6]
[1673201312027,0.00300793,16943.0,16942.0,2.739106]
[1673201312293,0.00300793,16943.0,16942.0,2.370747]
[1673201312540,0.70595071,16943.0,16942.0,3.070747]
[1673201312813,0.52930489,16943.0,16942.0,3.070747]
[1673201313764,0.00300793,16943.0,16942.0,3.070747]
[1673201314271,0.01400793,16943.0,16942.0,3.138747]
[1673201314523,0.01400793,16943.0,16942.0,3.507106]
[1673201314982,0.01400793,16943.0,16942.0,3.802206]
[1673201315918,0.01400793,16943.0,16942.0,3.507106]
[1673201316179,0.01400793,16943.0,16942.0,2.807106]
[1673201316428,0.01400793,16943.0,16942.0,2.438747]
[1673201317293,0.01400793,16943.0,16942.0,3.138747]
[1673201317946,0.01400793,16943.0,16942.0,3.507106]
[1673201318940,0.01400793,16943.0,16942.0,3.138747]
[1673201319158,0.19065375,16943.0,16942.0,3.138747]
[1673201320375,0.01400793,16943.0,16942.0,3.138747]
[1673201320633,0.19065375,16943.0,16942.0,3.138747]
[1673201321599,0.01400793,16943.0,16942.0,3.138747]
[1673201321839,0.01400793,16943.0,16942.0,3.507106]
[1673201322598,0.01400793,16943.0,16942.0,4.02564364]
[1673201322827,0.01400793,16943.0,16942.0,3.507106]
[1673201323512,0.01400793,16943.0,16942.0,4.02564364]
[1673201325464,0.01400793,16943.0,16942.0,4.32074364]
[1673201326221,0.01400793,16943.0,16942.0,4.02564364]
[1673201326481,0.01400793,16943.0,16942.0,4.32074364]
[1673201327580,0.01400793,16943.0,16942.0,4.96949219]
[1673201328827,0.01400793,16943.0,16942.0,4.26949219]
[1673201329055,0.01400793,16943.0,16942.0,4.96949219]
[1673201331337,0.01400793,16943.0,16942.0,4.60113319]
[1673201332023,0.01400793,16943.0,16942.0,4.96949219]
[1673201332749,0.01391679,16943.0,16942.0,5.26949219]
[1673201335752,0.01391679,16943.0,16942.0,4.90113319]
[1673201336780,0.01391679,16943.0,16942.0,5.26949219]
[1673201339592,0.01391679,16943.0,16942.0,4.96949219]
[1673201339816,0.19056261,16943.0,16942.0,4.60113319]
[1673201340069,0.01391679,16943.0,16942.0,4.60113319]
[1673201340351,0.19056261,16943.0,16942.0,4.60113319]
[1673201340824,0.61888415,16944.0,16943.0,5.9512364]
[1673201341082,0.61888415,16944.0,16943.0,7.8316644]
[1673201341588,0.61888415,16944.0,16943.0,9.30795088]
[1673201342082,0.26561269,16944.0,16943.0,9.30795088]
[1673201342327,0.27561269,16944.0,16943.0,9.38595088]
[1673201343644,0.27561269,16944.0,16943.0,8.8682374]
[1673201344209,0.27561269,16944.0,16943.0,8.4998784]
[1673201346914,0.62888415,16944.0,16943.0,8.4998784]
[1673201350866,0.80571383,16944.0,16943.0,8.4998784]
[1673201351134,0.62888415,16944.0,16943.0,8.4998784]
[1673201351384,0.62888415,16944.0,16943.0,9.00737645]
[1673201353693,0.62888415,16944.0,16943.0,8.30737645]
[1673201354438,0.62888415,16944.0,16943.0,9.67573545]
[1673201354439,0.18748449,16944.0,16943.0,9.67573545]
[1673201354924,0.01066122,16944.0,16943.0,9.67573545]
[1673201356212,0.01066122,16944.0,16943.0,9.97080545]
[1673201358076,0.18748449,16944.0,16943.0,9.97080545]
[1673201358178,0.18748449,16944.0,16943.0,9.67080545]
[1673201358938,0.01066122,16944.0,16943.0,9.97080545]
[1673201363419,0.01066122,16944.0,16943.0,9.27080545]
[1673201364159,0.18748449,16944.0,16943.0,9.27080545]
[1673201364417,0.18748449,16944.0,16943.0,9.97080545]
[1673201364664,0.18748449,16944.0,16943.0,9.67080545]
[1673201365160,0.01066122,16944.0,16943.0,9.97080545]
[1673201365686,0.18748449,16944.0,16943.0,9.97080545]
[1673201365963,0.01066122,16944.0,16943.0,9.97080545]
[1673201366227,0.01057854,16944.0,16943.0,9.97080545]
[1673201366481,0.01057854,16944.0,16943.0,9.97930545]
[1673201368291,0.01057854,16944.0,16943.0,9.67930545]
[1673201368517,0.01057854,16944.0,16943.0,9.97930545]
[1673201371445,0.18740181,16944.0,16943.0,8.8767374]
[1673201371700,0.45235328,16944.0,16943.0,9.39445088]
[1673201373207,0.45235328,16944.0,16943.0,9.02609188]
[1673201373735,0.45235328,16944.0,16943.0,9.39445088]
[1673201373988,0.45235328,16944.0,16943.0,9.69445088]
[1673201373989,0.18740181,16944.0,16943.0,9.69445088]
[1673201374240,0.18740181,16944.0,16943.0,9.39445088]
[1673201374979,0.01057854,16944.0,16943.0,9.69445088]
[1673201375219,0.01057854,16944.0,16943.0,9.39445088]
[1673201375461,0.01057854,16944.0,16943.0,9.69445088]
[1673201379468,0.01057854,16944.0,16943.0,9.39445088]
[1673201379709,0.18740181,16944.0,16943.0,9.39445088]
[1673201379951,0.01057854,16944.0,16943.0,9.39445088]
[1673201380213,0.18740181,16944.0,16943.0,9.39445088]
[1673201380432,0.01057854,16944.0,16943.0,8.99435131]
[1673201381429,0.01057854,16944.0,16943.0,9.69435131]
[1673201387646,0.01057854,16944.0,16943.0,8.99435131]
[1673201387892,0.01057854,16944.0,16943.0,9.69435131]
[1673201390742,0.01057854,16944.0,16943.0,9.87125724]
[1673201393599,0.01057854,16944.0,16943.0,10.04545724]
[1673201393823,0.01057854,16944.0,16943.0,9.34545724]
[1673201395061,0.01057854,16944.0,16943.0,10.04545724]
[1673201397714,0.01057854,16944.0,16943.0,10.31081608]
[1673201397968,0.01057854,16944.0,16943.0,10.04545724]
[1673201398216,0.01057854,16944.0,16943.0,10.31081608]
[1673201398450,0.01057854,16944.0,16943.0,10.04545724]
[1673201400457,0.0104761,16944.0,16943.0,10.04545724]
[1673201400958,0.0104761,16944.0,16943.0,9.34545724]
[1673201401209,0.18729937,16944.0,16943.0,9.16855131]
[1673201401707,0.18729937,16944.0,16943.0,9.16296031]
[1673201401976,0.18729937,16944.0,16943.0,9.86296031]
[1673201402982,0.0104761,16944.0,16943.0,10.03986624]
[1673201406614,0.18729937,16944.0,16943.0,9.86296031]
[1673201407868,0.18729937,16944.0,16943.0,8.86296031]
[1673201408110,0.18729937,16944.0,16943.0,9.03986624]
[1673201408379,0.0104761,16944.0,16943.0,9.33986624]
[1673201409229,0.0104761,16944.0,16943.0,10.03986624]
[1673201412789,0.0104761,16944.0,16943.0,10.30522508]
[1673201418145,0.0104761,16944.0,16943.0,10.60027508]
[1673201421311,0.0104761,16944.0,16943.0,10.23191608]
[1673201421591,0.0104761,16944.0,16943.0,10.60027508]
[1673201422349,0.0104761,16944.0,16943.0,9.96655724]
[1673201424566,0.01039324,16944.0,16943.0,9.96655724]
[1673201425575,0.18721651,16944.0,16943.0,9.96655724]
[1673201426344,0.18721651,16944.0,16943.0,9.67150724]
[1673201426597,0.18721651,16944.0,16943.0,9.96656724]
[1673201426835,0.01039324,16944.0,16943.0,9.96656724]
[1673201427363,0.18721651,16944.0,16943.0,9.96656724]
[1673201428381,0.18721651,16944.0,16943.0,9.26656724]
[1673201428889,0.18721651,16944.0,16943.0,8.96656724]
[1673201429158,1.69022628,16944.0,16943.0,8.50268783]
[1673201429405,1.69022628,16944.0,16943.0,7.96088882]
[1673201429406,1.62931341,16944.0,16943.0,7.96088882]
[1673201430155,2.07082157,16944.0,16943.0,7.26088882]
[1673201430409,1.62931341,16944.0,16943.0,7.26088882]
[1673201430910,2.07082157,16944.0,16943.0,7.26088882]
[1673201431170,1.62931341,16944.0,16943.0,7.26088882]
[1673201431392,1.62931341,16944.0,16943.0,7.7786023]
[1673201431928,1.62931341,16944.0,16943.0,7.26088882]
[1673201432197,0.628933,16944.0,16943.0,7.7786023]
[1673201432718,0.45242885,16944.0,16943.0,7.7786023]
[1673201434436,0.45242885,16944.0,16943.0,8.0736923]
[1673201435490,0.45242885,16944.0,16943.0,8.73756452]
[1673201435746,0.18716055,16944.0,16943.0,8.73756452]
[1673201435999,0.45242885,16944.0,16943.0,8.73756452]
[1673201436247,0.45242885,16944.0,16943.0,9.43756452]
[1673201438994,0.18716055,16944.0,16943.0,9.43756452]
[1673201440261,0.45242885,16944.0,16943.0,9.43756452]
[1673201441270,0.18716055,16944.0,16943.0,9.43756452]
[1673201441480,0.45242885,16944.0,16943.0,9.43756452]
[1673201441742,0.18716055,16944.0,16943.0,9.43756452]
[1673201441997,0.45242885,16944.0,16943.0,9.43756452]
[1673201442281,0.45242885,16944.0,16943.0,8.73756452]
[1673201442824,0.82078785,16944.0,16943.0,8.73756452]
[1673201443083,0.45242885,16944.0,16943.0,8.73756452]
[1673201443358,0.45242885,16944.0,16943.0,9.43756452]
[1673201445323,0.45242885,16944.0,16943.0,8.02476104]
[1673201445574,0.82078785,16944.0,16943.0,8.54247452]
[1673201445841,0.45242885,16944.0,16943.0,8.54247452]
[1673201446065,0.82078785,16944.0,16943.0,8.54247452]
[1673201447041,1.17405931,16944.0,16943.0,8.54247452]
[1673201447557,0.82071558,16944.0,16943.0,8.54247452]
[1673201448074,1.17398704,16944.0,16943.0,8.02476104]
[1673201448331,0.997292,16944.0,16943.0,8.02476104]
[1673201448584,0.997292,16944.0,16943.0,7.32476104]
[1673201449080,0.997292,16944.0,16943.0,7.84247452]
[1673201449328,1.17397482,16944.0,16943.0,7.84247452]
[1673201450037,0.997292,16944.0,16943.0,7.84247452]
[1673201450555,1.17397746,16944.0,16943.0,7.84247452]
[1673201451279,1.17397679,16944.0,16943.0,7.84247452]
[1673201451532,0.82070533,16944.0,16943.0,8.13756452]
[1673201451797,0.45234633,16944.0,16943.0,8.13756452]
[1673201452554,0.45234633,16944.0,16943.0,7.84247452]
[1673201452555,0.82070533,16944.0,16943.0,7.84247452]
[1673201453321,1.17397679,16944.0,16943.0,7.84247452]
[1673201453581,0.45234633,16944.0,16943.0,7.84247452]
[1673201454339,0.82070533,16944.0,16943.0,7.84247452]
[1673201455591,0.45234633,16944.0,16943.0,7.84247452]
[1673201457336,0.45234633,16944.0,16943.0,7.84240655]
[1673201458580,0.45234633,16944.0,16943.0,8.54240655]
[1673201461662,0.80561779,16944.0,16943.0,8.54240655]